fUST/lending_fUST_20260508
["ID","MTS","AMOUNT","RATE_DAILY","PERIOD"]
[421847632,1778214643000,-500.0,0.0001178,2]
[421847635,1778214643000,-500.0,0.0001178,2]
[421847634,1778214643000,-1002.65,0.0001178,2]
[421847637,1778214643000,-500.0,0.0001178,2]
[421847636,1778214643000,-500.0,0.0001178,2]
[421847642,1778214643000,-500.0,0.0001178,2]
[421847638,1778214643000,-500.0,0.0001178,2]
[421847614,1778214643000,-500.0,0.0001178,2]
[421847626,1778214643000,-545.82,0.0001178,2]
[421847613,1778214643000,-857.2,0.0001178,2]
[421847582,1778214643000,-500.0,0.0001178,2]
[421847606,1778214643000,-500.0,0.0001178,2]
[421847579,1778214643000,-500.0,0.0001178,2]
[421847578,1778214643000,-500.0,0.0001178,2]
[421847580,1778214643000,-742.43,0.0001178,2]
[421847645,1778214643000,-644.79446246,0.00011812,2]
[421847583,1778214643000,-593.1,0.0001178,2]
[421847585,1778214643000,-589.75,0.0001178,2]
[421847584,1778214643000,-500.0,0.0001178,2]
[421847581,1778214643000,-500.0,0.0001178,2]
[421847589,1778214643000,-287.03559268,0.0001178,2]
[421847586,1778214643000,-564.52,0.0001178,2]
[421847588,1778214643000,-500.0,0.0001178,2]
[421847587,1778214643000,-919.1,0.0001178,2]
[421847590,1778214643000,-500.0,0.0001178,2]
[421847611,1778214643000,-8124.26,0.0001178,2]
[421847591,1778214643000,-500.0,0.0001178,2]
[421847593,1778214643000,-500.0,0.0001178,2]
[421847601,1778214643000,-579.57088259,0.0001178,2]
[421847603,1778214643000,-500.0,0.0001178,2]
[421847604,1778214643000,-554.17,0.0001178,2]
[421847602,1778214643000,-500.0,0.0001178,2]
[421847594,1778214643000,-500.0,0.0001178,2]
[421847598,1778214643000,-161.44190998,0.0001178,2]
[421847595,1778214643000,-500.0,0.0001178,2]
[421847599,1778214643000,-1445.18,0.0001178,2]
[421847597,1778214643000,-500.0,0.0001178,2]
[421847596,1778214643000,-500.0,0.0001178,2]
[421847610,1778214643000,-500.0,0.0001178,2]
[421847608,1778214643000,-500.0,0.0001178,2]
[421847592,1778214643000,-500.0,0.0001178,2]
[421847641,1778214643000,-1833.01,0.0001178,2]
[421847649,1778214643000,-500.0,0.00012053,2]
[421847644,1778214643000,-500.0,0.0001178,2]
[421847681,1778214643000,-500.0,0.00012054,2]
[421847680,1778214643000,-500.0,0.00012054,2]
[421847679,1778214643000,-742.43,0.00012054,2]
[421847683,1778214643000,-500.0,0.00012054,2]
[421847677,1778214643000,-500.0,0.00012054,2]
[421847684,1778214643000,-589.75,0.00012054,2]
[421847688,1778214643000,-500.0,0.00012054,2]
[421847687,1778214643000,-919.1,0.00012054,2]
[421847686,1778214643000,-564.52,0.00012054,2]
[421847689,1778214643000,-500.0,0.00012054,2]
[421847691,1778214643000,-500.0,0.00012054,2]
[421847692,1778214643000,-500.0,0.00012054,2]
[421847693,1778214643000,-500.0,0.00012054,2]
[421847695,1778214643000,-500.0,0.00012054,2]
[421847694,1778214643000,-500.0,0.00012054,2]
[421847690,1778214643000,-500.0,0.00012054,2]
[421847696,1778214643000,-500.0,0.00012054,2]
[421847697,1778214643000,-1445.18,0.00012054,2]
[421847639,1778214643000,-1371.79,0.0001178,2]
[421847699,1778214643000,-500.0,0.00012054,2]
[421847700,1778214643000,-554.17,0.00012054,2]
[421847704,1778214643000,-8124.26,0.00012054,2]
[421847702,1778214643000,-500.0,0.00012054,2]
[421847703,1778214643000,-500.0,0.00012054,2]
[421847705,1778214643000,-874.0336,0.00012054,2]
[421847701,1778214643000,-500.0,0.00012054,2]
[421847706,1778214643000,-857.2,0.00012054,2]
[421847682,1778214643000,-593.1,0.00012054,2]
[421847676,1778214643000,-500.0,0.00012054,2]
[421847698,1778214643000,-500.0,0.00012054,2]
[421847674,1778214643000,-500.0,0.00012054,2]
[421847678,1778214643000,-500.0,0.00012054,2]
[421847640,1778214643000,-596.7,0.0001178,2]
[421847646,1778214643000,-668.65185757,0.00011867,2]
[421847647,1778214643000,-486.62928311,0.00011922,2]
[421847648,1778214643000,-410.97,0.00012053,2]
[421847652,1778214643000,-500.0,0.00012053,2]
[421847654,1778214643000,-500.0,0.00012053,2]
[421847656,1778214643000,-500.0,0.00012053,2]
[421847651,1778214643000,-500.0,0.00012053,2]
[421847655,1778214643000,-500.0,0.00012053,2]
[421847657,1778214643000,-500.0,0.00012053,2]
[421847659,1778214643000,-500.0,0.00012053,2]
[421847653,1778214643000,-500.0,0.00012053,2]
[421847660,1778214643000,-500.0,0.00012053,2]
[421847650,1778214643000,-533.16,0.00012053,2]
[421847662,1778214643000,-500.0,0.00012053,2]
[421847673,1778214643000,-500.0,0.00012054,2]
[421847661,1778214643000,-500.0,0.00012053,2]
[421847675,1778214643000,-500.0,0.00012054,2]
[421847667,1778214643000,-500.0,0.00012054,2]
[421847671,1778214643000,-500.0,0.00012054,2]
[421847665,1778214643000,-310.48,0.00012054,2]
[421847672,1778214643000,-500.0,0.00012054,2]
[421847670,1778214643000,-500.0,0.00012054,2]
[421847668,1778214643000,-234.92,0.00012054,2]
[421847664,1778214643000,-500.0,0.00012054,2]
[421847666,1778214643000,-500.0,0.00012054,2]
[421847663,1778214643000,-500.0,0.00012053,2]
[421847669,1778214643000,-500.0,0.00012054,2]
[421847730,1778214644000,-500.0,0.00012054,2]
[421847737,1778214644000,-375.15765474,0.00012062,2]
[421847732,1778214644000,-596.7,0.00012054,2]
[421847731,1778214644000,-1371.79,0.00012054,2]
[421847734,1778214644000,-500.0,0.00012054,2]
[421847736,1778214644000,-500.0,0.00012054,2]
[421847735,1778214644000,-500.0,0.00012054,2]
[421847733,1778214644000,-1833.01,0.00012054,2]
[421847738,1778214644000,-246.38,0.0001213,2]
[421847742,1778214644000,-500.0,0.00012327,2]
[421847739,1778214644000,-500.0,0.00012327,2]
[421847740,1778214644000,-500.0,0.00012327,2]
[421847741,1778214644000,-500.0,0.00012327,2]
[421847744,1778214644000,-500.0,0.00012327,2]
[421847743,1778214644000,-500.0,0.00012327,2]
[421847747,1778214644000,-164.36,0.00012328,2]
[421847746,1778214644000,-500.0,0.00012328,2]
[421847729,1778214644000,-500.0,0.00012054,2]
[421847745,1778214644000,-500.0,0.00012327,2]
[421847727,1778214644000,-500.0,0.00012054,2]
[421847714,1778214644000,-500.0,0.00012054,2]
[421847728,1778214644000,-500.0,0.00012054,2]
[421847707,1778214644000,-500.0,0.00012054,2]
[421847708,1778214644000,-500.0,0.00012054,2]
[421847710,1778214644000,-647.19,0.00012054,2]
[421847709,1778214644000,-1595.88,0.00012054,2]
[421847711,1778214644000,-500.0,0.00012054,2]
[421847713,1778214644000,-500.0,0.00012054,2]
[421847712,1778214644000,-500.0,0.00012054,2]
[421847716,1778214644000,-500.0,0.00012054,2]
[421847720,1778214644000,-565.8,0.00012054,2]
[421847749,1778214644000,-500.0,0.00012328,2]
[421847719,1778214644000,-545.82,0.00012054,2]
[421847717,1778214644000,-500.0,0.00012054,2]
[421847721,1778214644000,-1617.69,0.00012054,2]
[421847718,1778214644000,-500.0,0.00012054,2]
[421847715,1778214644000,-500.0,0.00012054,2]
[421847722,1778214644000,-500.0,0.00012054,2]
[421847723,1778214644000,-500.0,0.00012054,2]
[421847724,1778214644000,-500.0,0.00012054,2]
[421847725,1778214644000,-500.0,0.00012054,2]
[421847726,1778214644000,-1002.65,0.00012054,2]
[421847748,1778214644000,-500.0,0.00012328,2]
[421847785,1778214644000,-500.0,0.00012328,2]
[421847750,1778214644000,-500.0,0.00012328,2]
[421847775,1778214644000,-500.0,0.00012328,2]
[421847782,1778214644000,-500.0,0.00012328,2]
[421847781,1778214644000,-500.0,0.00012328,2]
[421847784,1778214644000,-647.19,0.00012328,2]
[421847779,1778214644000,-874.0336,0.00012328,2]
[421847778,1778214644000,-8124.26,0.00012328,2]
[421847777,1778214644000,-500.0,0.00012328,2]
[421847776,1778214644000,-500.0,0.00012328,2]
[421847780,1778214644000,-857.2,0.00012328,2]
[421847783,1778214644000,-1595.88,0.00012328,2]
[421847787,1778214644000,-500.0,0.00012328,2]
[421847786,1778214644000,-500.0,0.00012328,2]
[421847788,1778214644000,-500.0,0.00012328,2]
[421847791,1778214644000,-500.0,0.00012328,2]
[421847790,1778214644000,-500.0,0.00012328,2]
[421847793,1778214644000,-565.8,0.00012328,2]
[421847792,1778214644000,-545.82,0.00012328,2]
[421847794,1778214644000,-1617.69,0.00012328,2]
[421847751,1778214644000,-536.0,0.00012328,2]
[421847774,1778214644000,-554.17,0.00012328,2]
[421847773,1778214644000,-500.0,0.00012328,2]
[421847789,1778214644000,-500.0,0.00012328,2]
[421847768,1778214644000,-500.0,0.00012328,2]
[421847769,1778214644000,-500.0,0.00012328,2]
[421847754,1778214644000,-500.0,0.00012328,2]
[421847752,1778214644000,-500.0,0.00012328,2]
[421847753,1778214644000,-547.0,0.00012328,2]
[421847755,1778214644000,-742.43,0.00012328,2]
[421847758,1778214644000,-500.0,0.00012328,2]
[421847760,1778214644000,-589.75,0.00012328,2]
[421847759,1778214644000,-593.1,0.00012328,2]
[421847761,1778214644000,-564.52,0.00012328,2]
[421847756,1778214644000,-500.0,0.00012328,2]
[421847763,1778214644000,-500.0,0.00012328,2]
[421847762,1778214644000,-919.1,0.00012328,2]
[421847764,1778214644000,-500.0,0.00012328,2]
[421847765,1778214644000,-590.58503882,0.00012328,2]
[421847767,1778214644000,-500.0,0.00012328,2]
[421847770,1778214644000,-500.0,0.00012328,2]
[421847772,1778214644000,-1445.18,0.00012328,2]
[421847771,1778214644000,-500.0,0.00012328,2]
[421847757,1778214644000,-500.0,0.00012328,2]
[421847766,1778214644000,-500.0,0.00012328,2]
[421847841,1778214645000,-8124.26,0.00012602,2]
[421847837,1778214645000,-1445.18,0.00012602,2]
[421847833,1778214645000,-500.0,0.00012602,2]
[421847834,1778214645000,-500.0,0.00012602,2]
[421847832,1778214645000,-500.0,0.00012602,2]
[421847831,1778214645000,-919.1,0.00012602,2]
[421847828,1778214645000,-593.1,0.00012602,2]
[421847829,1778214645000,-589.75,0.00012602,2]
[421847826,1778214645000,-500.0,0.00012602,2]
[421847844,1778214645000,-500.0,0.00012602,2]
[421847825,1778214645000,-500.0,0.00012602,2]
[421847830,1778214645000,-564.52,0.00012602,2]
[421847843,1778214645000,-857.2,0.00012602,2]
[421847850,1778214645000,-500.0,0.00012602,2]
[421847846,1778214645000,-647.19,0.00012602,2]
[421847842,1778214645000,-874.0336,0.00012602,2]
[421847845,1778214645000,-1595.88,0.00012602,2]
[421847840,1778214645000,-500.0,0.00012602,2]
[421847839,1778214645000,-500.0,0.00012602,2]
[421847835,1778214645000,-500.0,0.00012602,2]
[421847848,1778214645000,-500.0,0.00012602,2]
[421847847,1778214645000,-500.0,0.00012602,2]
[421847849,1778214645000,-500.0,0.00012602,2]
[421847851,1778214645000,-500.0,0.00012602,2]
[421847854,1778214645000,-565.8,0.00012602,2]
[421847852,1778214645000,-500.0,0.00012602,2]
[421847823,1778214645000,-500.0,0.00012602,2]
[421847838,1778214645000,-554.17,0.00012602,2]
[421847827,1778214645000,-500.0,0.00012602,2]
[421847802,1778214645000,-500.0,0.00012328,2]
[421847821,1778214645000,-500.0,0.00012602,2]
[421847796,1778214645000,-500.0,0.00012328,2]
[421847797,1778214645000,-500.0,0.00012328,2]
[421847795,1778214645000,-500.0,0.00012328,2]
[421847799,1778214645000,-1002.65,0.00012328,2]
[421847798,1778214645000,-500.0,0.00012328,2]
[421847801,1778214645000,-568.98045694,0.00012328,2]
[421847800,1778214645000,-453.95236519,0.00012328,2]
[421847855,1778214645000,-1617.69,0.00012602,2]
[421847805,1778214645000,-596.7,0.00012328,2]
[421847804,1778214645000,-1371.79,0.00012328,2]
[421847803,1778214645000,-500.0,0.00012328,2]
[421847806,1778214645000,-1833.01,0.00012328,2]
[421847808,1778214645000,-1411.0,0.000125,2]
[421847807,1778214645000,-500.0,0.00012328,2]
[421847809,1778214645000,-197.81,0.000125,2]
[421847810,1778214645000,-185.0,0.000125,2]
[421847813,1778214645000,-500.0,0.00012601,2]
[421847819,1778214645000,-500.0,0.00012602,2]
[421847814,1778214645000,-500.0,0.00012601,2]
[421847817,1778214645000,-500.0,0.00012601,2]
[421847815,1778214645000,-237.20754882,0.00012601,2]
[421847812,1778214645000,-500.0,0.00012601,2]
[421847816,1778214645000,-500.0,0.00012601,2]
[421847811,1778214645000,-447.282,0.000125,2]
[421847820,1778214645000,-395.0,0.00012602,2]
[421847818,1778214645000,-500.0,0.00012602,2]
[421847822,1778214645000,-500.0,0.00012602,2]
[421847824,1778214645000,-742.43,0.00012602,2]
[421847853,1778214645000,-545.82,0.00012602,2]
[421847836,1778214645000,-500.0,0.00012602,2]
[421847857,1778214645000,-500.0,0.00012602,2]
[421847886,1778214645000,-500.0,0.00012876,2]
[421847892,1778214645000,-874.0336,0.00012876,2]
[421847890,1778214645000,-500.0,0.00012876,2]
[421847889,1778214645000,-319.42,0.00012876,2]
[421847891,1778214645000,-8124.26,0.00012876,2]
[421847888,1778214645000,-554.17,0.00012876,2]
[421847896,1778214645000,-647.19,0.00012876,2]
[421847897,1778214645000,-500.0,0.00012876,2]
[421847898,1778214645000,-500.0,0.00012876,2]
[421847901,1778214645000,-500.0,0.00012876,2]
[421847900,1778214645000,-500.0,0.00012876,2]
[421847899,1778214645000,-500.0,0.00012876,2]
[421847903,1778214645000,-545.82,0.00012876,2]
[421847904,1778214645000,-565.8,0.00012876,2]
[421847906,1778214645000,-500.0,0.00012876,2]
[421847905,1778214645000,-1617.69,0.00012876,2]
[421847908,1778214645000,-1002.65,0.00012876,2]
[421847902,1778214645000,-500.0,0.00012876,2]
[421847907,1778214645000,-500.0,0.00012876,2]
[421847910,1778214645000,-1371.79,0.00012876,2]
[421847909,1778214645000,-500.0,0.00012876,2]
[421847912,1778214645000,-1833.01,0.00012876,2]
[421847911,1778214645000,-596.7,0.00012876,2]
[421847913,1778214645000,-500.0,0.00012876,2]
[421847915,1778214645000,-160.0,0.000129,2]
[421847914,1778214645000,-832.0,0.00012893,2]
[421847856,1778214645000,-500.0,0.00012602,2]
[421847895,1778214645000,-1595.88,0.00012876,2]
[421847894,1778214645000,-500.0,0.00012876,2]
[421847887,1778214645000,-1445.18,0.00012876,2]
[421847885,1778214645000,-500.0,0.00012876,2]
[421847858,1778214645000,-1002.65,0.00012602,2]
[421847860,1778214645000,-1371.79,0.00012602,2]
[421847859,1778214645000,-500.0,0.00012602,2]
[421847867,1778214645000,-621.18,0.00012875,2]
[421847861,1778214645000,-596.7,0.00012602,2]
[421847863,1778214645000,-500.0,0.00012602,2]
[421847862,1778214645000,-1833.01,0.00012602,2]
[421847865,1778214645000,-151.0,0.000128,2]
[421847893,1778214645000,-857.2,0.00012876,2]
[421847866,1778214645000,-279.92,0.00012875,2]
[421847869,1778214645000,-500.0,0.00012876,2]
[421847868,1778214645000,-500.0,0.00012875,2]
[421847870,1778214645000,-500.0,0.00012876,2]
[421847871,1778214645000,-500.0,0.00012876,2]
[421847864,1778214645000,-411.827,0.00012794,2]
[421847874,1778214645000,-742.43,0.00012876,2]
[421847916,1778214645000,-11051.57630709,0.000129,2]
[421847872,1778214645000,-500.0,0.00012876,2]
[421847875,1778214645000,-500.0,0.00012876,2]
[421847876,1778214645000,-500.0,0.00012876,2]
[421847877,1778214645000,-500.0,0.00012876,2]
[421847878,1778214645000,-593.1,0.00012876,2]
[421847880,1778214645000,-564.52,0.00012876,2]
[421847882,1778214645000,-500.0,0.00012876,2]
[421847879,1778214645000,-589.75,0.00012876,2]
[421847881,1778214645000,-919.1,0.00012876,2]
[421847884,1778214645000,-500.0,0.00012876,2]
[421847873,1778214645000,-500.0,0.00012876,2]
[421847883,1778214645000,-500.0,0.00012876,2]
[421847923,1778214646000,-500.0,0.00012973,2]
[421847930,1778214646000,-500.0,0.00012973,2]
[421847925,1778214646000,-500.0,0.00012973,2]
[421847926,1778214646000,-500.0,0.00012973,2]
[421847928,1778214646000,-220.92086826,0.00012973,2]
[421847917,1778214646000,-11051.57630706,0.000129,2]
[421847921,1778214646000,-500.0,0.00012973,2]
[421847919,1778214646000,-500.0,0.00012973,2]
[421847920,1778214646000,-500.0,0.00012973,2]
[421847918,1778214646000,-11051.57630706,0.000129,2]
[421847931,1778214646000,-500.0,0.00012973,2]
[421847922,1778214646000,-500.0,0.00012973,2]
[421847927,1778214646000,-235.5271228,0.00012973,2]
[421847929,1778214646000,-500.0,0.00012973,2]
[421847933,1778214646000,-500.0,0.00012973,2]
[421847935,1778214646000,-500.0,0.00012973,2]
[421847945,1778214646000,-2466.02733228,0.00013,2]
[421847943,1778214646000,-609.4,0.00010958,2]
[421847944,1778214646000,-501.48521307,0.00011232,2]
[421847946,1778214646000,-527.37060269,0.00013,2]
[421847939,1778214646000,-202.11041362,0.00012999,2]
[421847940,1778214646000,-949609.41207767,0.00013,2]
[421847937,1778214646000,-500.32891229,0.00012973,2]
[421847936,1778214646000,-160.41251713,0.00012973,2]
[421847934,1778214646000,-272.51126993,0.00012973,2]
[421847924,1778214646000,-500.0,0.00012973,2]
[421847932,1778214646000,-500.0,0.00012973,2]
[421847938,1778214646000,-500.32733977,0.00012973,2]
[421847953,1778214647000,-500.0,0.00010958,2]
[421847952,1778214647000,-500.0,0.00010958,2]
[421847957,1778214647000,-500.0,0.0001178,2]
[421847955,1778214647000,-132.0383826,0.00011506,2]
[421847954,1778214647000,-500.0,0.00011232,2]
[421847956,1778214647000,-367.9616174,0.00011506,2]
[421847959,1778214647000,-500.0,0.00012054,2]
[421847960,1778214647000,-5939.79107111,0.00013,2]
[421847958,1778214647000,-6203.975476,0.00013,2]
[421848073,1778215773000,2000.19,0.00019178,120]
[421848086,1778215832000,-3457.55474788,0.00010552,2]
[421848148,1778215844000,-500.0,0.00010857,2]
[421848149,1778215844000,-500.0,0.00010857,2]
[421848145,1778215844000,-244.64270548,0.00010857,2]
[421848147,1778215844000,-500.0,0.00010857,2]
[421848146,1778215844000,-500.0,0.00010857,2]
[421848140,1778215844000,-300.0,0.00010856,2]
[421848138,1778215844000,-199.12119629,0.00010552,2]
[421848139,1778215844000,-319.01017984,0.00010713,2]
[421848142,1778215844000,-237.38188544,0.00010857,2]
[421848141,1778215844000,-300.0,0.00010856,2]
[421848137,1778215844000,-1343.32405583,0.00010552,2]
[421848144,1778215844000,-500.0,0.00010857,2]
[421848143,1778215844000,-235.36586363,0.00010857,2]
[421848154,1778215844000,-500.0,0.00010857,2]
[421848158,1778215844000,-256.57266508,0.00010857,2]
[421848155,1778215844000,-500.0,0.00010857,2]
[421848150,1778215844000,-500.0,0.00010857,2]
[421848161,1778215844000,-600.0,0.00010857,2]
[421848162,1778215844000,-18155.93981332,0.00010858,2]
[421848164,1778215844000,-144041.56384429,0.00010858,2]
[421848159,1778215844000,-500.0,0.00010857,2]
[421848156,1778215844000,-500.0,0.00010857,2]
[421848165,1778215844000,-34258.06788533,0.00010858,2]
[421848163,1778215844000,-288.07357235,0.00010858,2]
[421848157,1778215844000,-500.0,0.00010857,2]
[421848153,1778215844000,-500.0,0.00010857,2]
[421848152,1778215844000,-500.0,0.00010857,2]
[421848151,1778215844000,-500.0,0.00010857,2]
[421848160,1778215844000,-267.70168923,0.00010857,2]
[421848181,1778215847000,-500.0,0.00010958,2]
[421848179,1778215847000,-500.0,0.00010958,2]
[421848180,1778215847000,-500.0,0.00010958,2]
[421848178,1778215847000,-500.0,0.00010958,2]
[421848177,1778215847000,-500.0,0.00010958,2]
[421848175,1778215847000,-500.0,0.00010958,2]
[421848174,1778215847000,-500.0,0.00010958,2]
[421848173,1778215847000,-500.0,0.00010958,2]
[421848182,1778215847000,-500.0,0.00010958,2]
[421848171,1778215847000,-30337.4999058,0.00010858,2]
[421848176,1778215847000,-191.48370128,0.00010958,2]
[421848186,1778215847000,-500.0,0.00010958,2]
[421848172,1778215847000,-874.0336,0.00010958,2]
[421848184,1778215847000,-500.0,0.00010958,2]
[421848183,1778215847000,-500.0,0.00010958,2]
[421848196,1778215847000,-449.9890514,0.00010958,2]
[421848195,1778215847000,-500.0,0.00010958,2]
[421848192,1778215847000,-500.0,0.00010958,2]
[421848193,1778215847000,-53.86286519,0.00010958,2]
[421848194,1778215847000,-446.13713481,0.00010958,2]
[421848187,1778215847000,-523.2,0.00010958,2]
[421848189,1778215847000,-500.0,0.00010958,2]
[421848185,1778215847000,-441.76819075,0.00010958,2]
[421848191,1778215847000,-500.0,0.00010958,2]
[421848190,1778215847000,-311.68987643,0.00010958,2]
[421848188,1778215847000,-500.0,0.00010958,2]
[421848341,1778217032000,-500.0,0.00010958,2]
[421848338,1778217032000,-500.0,0.00010958,2]
[421848331,1778217032000,-1009.5203,0.00010958,2]
[421848333,1778217032000,-500.0,0.00010958,2]
[421848339,1778217032000,-500.0,0.00010958,2]
[421848337,1778217032000,-500.0,0.00010958,2]
[421848336,1778217032000,-500.0,0.00010958,2]
[421848340,1778217032000,-500.0,0.00010958,2]
[421848335,1778217032000,-500.0,0.00010958,2]
[421848328,1778217032000,-374.0,9.999e-05,2]
[421848332,1778217032000,-307.42,0.00010958,2]
[421848330,1778217032000,-2243.13762305,0.0001,2]
[421848329,1778217032000,-2746.99702353,0.0001,2]
[421848327,1778217032000,-300.0,9.999e-05,2]
[421848343,1778217032000,-460.89557285,0.00010958,2]
[421848326,1778217032000,-319.2781922,9.95e-05,2]
[421848325,1778217032000,-3656.2499359,9.801e-05,2]
[421848324,1778217032000,-1343.7500641,9.801e-05,2]
[421848342,1778217032000,-500.0,0.00010958,2]
[421848345,1778217032000,-500.0,0.00010958,2]
[421848334,1778217032000,-500.0,0.00010958,2]
[421848354,1778217032000,-500.0,0.00010958,2]
[421848364,1778217032000,-500.0,0.00010958,2]
[421848353,1778217032000,-500.0,0.00010958,2]
[421848366,1778217032000,-201.5062785,0.00010958,2]
[421848365,1778217032000,-500.0,0.00010958,2]
[421848360,1778217032000,-500.0,0.00010958,2]
[421848361,1778217032000,-500.0,0.00010958,2]
[421848363,1778217032000,-500.0,0.00010958,2]
[421848356,1778217032000,-501.65660157,0.00010958,2]
[421848359,1778217032000,-500.0,0.00010958,2]
[421848358,1778217032000,-500.0,0.00010958,2]
[421848362,1778217032000,-500.0,0.00010958,2]
[421848355,1778217032000,-500.0,0.00010958,2]
[421848351,1778217032000,-154.47857396,0.00010958,2]
[421848352,1778217032000,-500.0,0.00010958,2]
[421848349,1778217032000,-501.61451429,0.00010958,2]
[421848350,1778217032000,-503.28400483,0.00010958,2]
[421848346,1778217032000,-500.0,0.00010958,2]
[421848347,1778217032000,-500.0,0.00010958,2]
[421848344,1778217032000,-39.10442715,0.00010958,2]
[421848348,1778217032000,-500.0,0.00010958,2]
[421848357,1778217032000,-500.0,0.00010958,2]
[421848374,1778217038000,-4627.95644566,9.703e-05,2]
[421848375,1778217038000,-124.10685163,0.00010958,2]
[421848373,1778217038000,-372.04355434,9.703e-05,2]
[421848376,1778217039000,-174.38686987,0.00010958,2]
[421848378,1778217039000,-500.0,0.00010958,2]
[421848377,1778217039000,-500.0,0.00010958,2]
[421848379,1778217039000,-500.0,0.00010958,2]
[421848380,1778217039000,-251.43016569,0.00010958,2]
[421848399,1778217047000,-500.0,0.00010958,2]
[421848398,1778217047000,-355.76983431,0.00010958,2]
[421848405,1778217047000,-12.54098304,0.00010958,2]
[421848404,1778217047000,-500.0,0.00010958,2]
[421848411,1778217047000,-500.0,0.00010958,2]
[421848402,1778217047000,-500.0,0.00010958,2]
[421848401,1778217047000,-500.0,0.00010958,2]
[421848400,1778217047000,-500.0,0.00010958,2]
[421848403,1778217047000,-500.0,0.00010958,2]
[421848406,1778217047000,-448.54569826,0.00010958,2]
[421848408,1778217047000,-500.0,0.00010958,2]
[421848412,1778217047000,-500.0,0.00010958,2]
[421848417,1778217047000,-500.0,0.00010958,2]
[421848407,1778217047000,-500.0,0.00010958,2]
[421848410,1778217047000,-500.0,0.00010958,2]
[421848421,1778217047000,-741.88,0.00010958,2]
[421848420,1778217047000,-963.45,0.00010958,2]
[421848419,1778217047000,-500.0,0.00010958,2]
[421848418,1778217047000,-561.64,0.00010958,2]
[421848422,1778217047000,-251.56500473,0.00010958,2]
[421848416,1778217047000,-500.0,0.00010958,2]
[421848415,1778217047000,-500.0,0.00010958,2]
[421848414,1778217047000,-500.0,0.00010958,2]
[421848409,1778217047000,-500.0,0.00010958,2]
[421848413,1778217047000,-500.0,0.00010958,2]
[421848425,1778217281000,152.0,0.00010876,30]
[421848445,1778218102000,20048.64366557,0.00019,120]
[421848449,1778218145000,152.0,0.00010878,30]
[421848478,1778218235000,-1200.0,0.00010456,2]
[421848475,1778218235000,-1061.08462036,0.00010095,2]
[421848476,1778218235000,-3938.91537964,0.00010095,2]
[421848477,1778218235000,-319.50139821,0.00010275,2]
[421848479,1778218235000,-300.0,0.00010457,2]
[421848485,1778218235000,-1009.5204,0.00010958,2]
[421848482,1778218235000,-300.0,0.00010458,2]
[421848483,1778218235000,-8620.88887459,0.00010459,2]
[421848484,1778218235000,-264.07834121,0.00010459,2]
[421848481,1778218235000,-300.0,0.00010457,2]
[421848486,1778218235000,-410.95437941,0.00010958,2]
[421848480,1778218235000,-300.0,0.00010457,2]
[421848507,1778218238000,-500.0,0.00010958,2]